Cogmind - Beta 10.1 @@@ ROGUE MODE // 2020.10.05 @ 02:58:27 Player: BOTHUNTER Result: Destroyed by S-10 Pest with Light Assault Rifle Performance ------------- Evolutions (2) 1000 Regions Visited (4) 800 Robots Destroyed (22) 110 Value Destroyed (399) 399 Prototype IDs (2) 40 Alien Tech Used (0) 0 Bonus (0) 0 TOTAL SCORE: 2349 Bonus ------- None Cogmind --------- Core Integrity 0/550 Matter 300/300 Energy 82/100 System Corruption 0% Temperature Cool (0) Movement Core (50) Location -8/Materials Parts ------- > --- POWER (1) -------- (None) > --- PROPULSION (2) --- (None) > --- UTILITY (6) ------ Improved Targeting Computer Improved Targeting Computer Improved Targeting Computer Improved Targeting Computer Melee Analysis Suite Melee Analysis Suite > --- WEAPON (2) ------- Heavy Flail > --- INVENTORY (4) ---- Light Ion Engine Flight Unit Experimental Sensor Array Transmission Jammer Peak State ------------ > --- POWER ------------ (None) > --- PROPULSION ------- Flight Unit > --- UTILITY ---------- Improved Targeting Computer Improved Targeting Computer Improved Targeting Computer Improved Targeting Computer Melee Analysis Suite Melee Analysis Suite > --- WEAPON ----------- Improved EM Shotgun Heavy Flail > --- INVENTORY -------- Light Ion Engine Flight Unit Experimental Sensor Array Transmission Jammer [Rating: 22] Favorites ----------- Power None Propulsion Flight Unit Flight Unit Flight Unit Utility Improved Targeting Computer Processor Improved Targeting Computer Weapon Axe Energy Gun EM Pulse Gun Ballistic Gun Light Assault Rifle Special Weapon Mining Laser Impact Weapon Heavy Flail Slashing Weapon Axe Build | -11 -10 -10 -9 -8 ------- Run | Scr Mat Min Mat Mat Slots Evolved 4 | . . . 2 2 Power . | . . . . . Propulsion . | . . . . . Utility 4 | . . . 2 2 Weapon . | . . . . . Parts Attached 19 | 2 2 1 4 10 Power . | . . . . . Engine . | . . . . . Core . | . . . . . Reactor . | . . . . . Propulsion 4 | . . . . 4 Treads . | . . . . . Leg . | . . . . . Wheel . | . . . . . Hover . | . . . . . Flight 4 | . . . . 4 Utility 6 | . . . 4 2 Device . | . . . . . Storage . | . . . . . Processor 6 | . . . 4 2 Hackware . | . . . . . Protection . | . . . . . Artifact . | . . . . . Weapon 9 | 2 2 1 . 4 Energy Gun 3 | 2 . . . 1 Energy Cannon . | . . . . . Ballistic Gun 2 | . . . . 2 Ballistic Cannon . | . . . . . Launcher . | . . . . . Special Weapon 2 | . 2 . . . Impact Weapon 1 | . . . . 1 Slashing Weapon 1 | . . 1 . . Piercing Weapon . | . . . . . Special Melee Weapon . | . . . . . Unidentified Prototypes 1 | . . . . 1 Parts Lost 9 | . 2 . . 7 Power . | . . . . . Propulsion 3 | . . . . 3 Utility . | . . . . . Weapon 6 | . 2 . . 4 Highest Loss Streak 4 | . 2 . . 4 Average Slot Usage (%) 29 | . 14 14 21 68 Flight 2 | . . . . 9 Processor 14 | . . . 10 47 Special Weapon 4 | . 2 10 . . Impact Weapon 1 | . . . . 6 Slashing Weapon 4 | . . 3 11 2 Naked Turns 5 | . 5 . . . Heaviest Build 6 | 4 2 3 3 6 Greatest Support 8 | 3 3 3 3 8 Greatest Overweight (x) 1 | 1 . . . 1 Average Overweight (x) . | . . . . . Largest Inventory Capacity 4 | 4 4 4 4 4 Average Capacity 4 | 4 4 4 4 4 Most Carried 4 | 1 1 4 4 4 Average Carried 2 | . 1 2 4 3 Final Capacity 4 | 4 4 4 4 4 Final Carried 4 | 1 1 4 4 4 Class Distribution -------------------- 100% | Mutant Dominant Class ---------------- Mutant | -10/Materials Mutant | -10/Mines Mutant | -9/Materials Mutant | -8/Materials Resources | -11 -10 -10 -9 -8 ----------- Run | Scr Mat Min Mat Mat Matter Collected 368 | 214 . 26 40 88 Remotely . | . . . . . Salvage Created 576 | . 15 39 166 356 Parts 30 | . 4 6 11 9 Haulers Intercepted 2 | . . . . 2 Recyclers Shooed 2 | . . 1 1 . Parts Field Recycled . | . . . . . Retrieved Matter . | . . . . . Parts Self-Destructed . | . . . . . Prevented . | . . . . . Kills | -11 -10 -10 -9 -8 ------- Run | Scr Mat Min Mat Mat Combat Hostiles Destroyed 14 | . . 2 4 8 Melee 9 | . . 1 4 4 Guns 1 | . . . . 1 Cannons 1 | . . 1 . . AOE 2 | . . . . 2 Classes Destroyed 8 | . 1 2 2 3 Worker 3 | . . 2 1 . Builder 1 | . . . . 1 Hauler 2 | . . . . 2 Recycler 1 | . . . . 1 Watcher 1 | . 1 . . . Swarmer 7 | . . . 1 6 Grunt 6 | . . 2 2 2 Sentry 1 | . . . 1 . Best Kill Streak 5 | . 1 2 3 5 Combat Bots Only 4 | . . 1 3 4 Max Kills in Single Turn 1 | . 1 1 1 1 Gunslinging . | . . . . . Exploded 1 | . . . . 1 Melee 1 | . . 1 1 1 Uniques/NPCs Destroyed . | . . . . . Combat | -11 -10 -10 -9 -8 -------- Run | Scr Mat Min Mat Mat Damage Taken 1552 | . 147 124 381 900 Core 1059 | . 65 96 345 553 Absorbed by Shields . | . . . . . Core Remaining (%) 49 | 100 . 35 13 . Volleys Fired 22 | . 5 11 . 6 Largest 1 | . 1 1 . 1 Hottest 100 | . 40 100 . 45 Shots Fired 22 | . 5 11 . 6 Gun 11 | . 5 . . 6 Cannon . | . . . . . Launcher . | . . . . . Special 11 | . . 11 . . Kinetic 3 | . . . . 3 Thermal 11 | . . 11 . . Explosive . | . . . . . Electromagnetic 8 | . 5 . . 3 Robot Hit Streak 5 | . 1 4 . 5 Robot Miss Streak 3 | . 3 3 . 1 Penetration Max . | . . . . . Secondary Targets . | . . . . . Shots Hit Robots 48 | . 2 8 16 22 Core Hits 23 | . 1 4 5 13 Critical Hits . | . . . . . Critical Kills . | . . . . . Critical Parts Destroyed . | . . . . . Melee Attacks 59 | . . 3 27 29 Impact 18 | . . . . 18 Slashing 41 | . . 3 27 11 Piercing . | . . . . . Sneak Attacks 6 | . . 1 2 3 Combat Hostiles . | . . . . . Follow-up Attacks . | . . . . . Damage Inflicted 1983 | . 34 306 725 918 Guns 105 | . 34 . . 71 Cannons . | . . . . . Explosions 91 | . . . . 91 Melee 1665 | . . 184 725 756 Ramming . | . . . . . Kinetic 20 | . . . . 20 Thermal 213 | . . 122 . 91 Explosive . | . . . . . Electromagnetic 85 | . 34 . . 51 Impact 476 | . . . . 476 Slashing 1189 | . . 184 725 280 Piercing . | . . . . . Highest Corruption . | . . . . . Average Corruption . | . . . . . Corruption Purged . | . . . . . Overload Shots . | . . . . . Overflow Damage 414 | . . 60 136 218 Projectiles . | . . . . . Explosions . | . . . . . Melee 414 | . . 60 136 218 Knockbacks 2 | . . . . 2 Impact 2 | . . . . 2 Kinetic . | . . . . . Secondary . | . . . . . Self-Inflicted Damage 53 | . . . . 53 Shots 1 | . . . . 1 Rammed . | . . . . . Targets Rammed . | . . . . . Kicked . | . . . . . Crushed . | . . . . . Highest Temperature 29 | . 15 29 . 5 Average Temperature 14 | . 12 16 . 3 Received Heat Transfer 336 | . . 75 108 153 Siege Activations . | . . . . . Robots Corrupted . | . . . . . Combat Hostiles . | . . . . . Parts Fried 3 | . . . . 3 Impact Corruptions 7 | . . . . 7 Robots Melted . | . . . . . Combat Hostiles . | . . . . . Parts Melted . | . . . . . Heat Transferred 400 | . . 250 . 150 Parts Sabotaged . | . . . . . Parts Stolen . | . . . . . Parts Stripped . | . . . . . Power Chain Reactions 1 | . . . . 1 Missiles Intercepted . | . . . . . Alert | -11 -10 -10 -9 -8 ------- Run | Scr Mat Min Mat Mat Peak Influence 324 | . 46 80 229 324 Initial 96 | . . 9 31 96 Average 95 | . 20 51 104 198 Maximum Alert Level 1 | . . . 1 1 Low Security (%) 85 | 100 100 100 84 53 Level 1 14 | . . . 15 46 Level 2 . | . . . . . Level 3 . | . . . . . Level 4 . | . . . . . Level 5 . | . . . . . High Security . | . . . . . Max Security . | . . . . . Squads Dispatched 5 | . 1 1 2 1 Investigation 5 | . 1 1 2 1 Extermination . | . . . . . Reinforcement . | . . . . . Assault . | . . . . . Garrison . | . . . . . Intercept . | . . . . . Construction Impeded . | . . . . . Haulers Reinforced . | . . . . . Stealth | -11 -10 -10 -9 -8 --------- Run | Scr Mat Min Mat Mat Distress Signals 4 | . 1 1 1 1 Communications Jammed . | . . . . . Distress Signals . | . . . . . Times Spotted 48 | . 6 6 15 21 Peak Tracking Total 14 | . 5 2 5 14 Tactical Retreats 3 | . 1 1 1 . Traps | -11 -10 -10 -9 -8 ------- Run | Scr Mat Min Mat Mat Traps Triggered 1 | . . . 1 . Indirectly . | . . . . . Trap Hack Attempts . | . . . . . Triggered . | . . . . . Disarmed . | . . . . . Reprogrammed . | . . . . . Reused . | . . . . . Traps Extracted . | . . . . . Installed . | . . . . . Triggered . | . . . . . Machines | -11 -10 -10 -9 -8 ---------- Run | Scr Mat Min Mat Mat Machines Disabled 2 | . 1 1 . . Max in Single Turn 1 | . 1 1 . . Machines Sabotaged . | . . . . . Garrisons Compromised . | . . . . . Overloaded Fab Kills . | . . . . . Fab Network Shutdowns . | . . . . . Hacking | -11 -10 -10 -9 -8 --------- Run | Scr Mat Min Mat Mat Machines Accessed 15 | . 2 2 6 5 Terminals 13 | . 2 1 5 5 Fabricators . | . . . . . Repair Stations . | . . . . . Recycling Units . | . . . . . Scanalyzers 1 | . . . 1 . Garrison Access . | . . . . . Total Hacks 41 | . 6 4 16 15 Successful 21 | . 4 2 6 9 Failed 19 | . 2 2 10 5 Catastrophic 4 | . . 1 2 1 Database Lockouts 1 | . . . . 1 Manual 32 | . 3 3 13 13 Terminals 37 | . 6 3 13 15 Fabricators . | . . . . . Repair Stations . | . . . . . Recycling Units . | . . . . . Scanalyzers 3 | . . . 3 . Garrison Access . | . . . . . Terminal Hacks 10 | . 3 2 . 5 Record 1 | . 1 . . . Robot Analysis 4 | . 1 1 . 2 Open Door 1 | . . 1 . . Branch Access Points 1 | . 1 . . . Alert Level 1 | . . . . 1 Unreport Threat 1 | . . . . 1 Locate Traps 1 | . . . . 1 Fabricator Hacks . | . . . . . Repair Station Hacks . | . . . . . Recycling Unit Hacks . | . . . . . Scanalyzer 3 | . . . 3 . Insert Component 1 | . . . 1 . Analyze 2 | . . . 2 . Garrison Access Hacks . | . . . . . Unauthorized Hacks 8 | . 1 . 3 4 Terminals 8 | . 1 . 3 4 Botnet 8 | . 1 . 3 4 Fabricators . | . . . . . Repair Stations . | . . . . . Recycling Units . | . . . . . Scanalyzers . | . . . . . Garrison Access . | . . . . . Data Cores Recovered . | . . . . . Used . | . . . . . Hacking Detections 12 | . 2 1 6 3 Full Trace Events 6 | . 1 1 3 1 Feedback Events . | . . . . . Feedback Blocked . | . . . . . Robot Schematics Acquired . | . . . . . Robots Built . | . . . . . Matter . | . . . . . Time . | . . . . . Total Robot Build Rating . | . . . . . Part Schematics Acquired 1 | . . . 1 . Parts Built . | . . . . . Matter . | . . . . . Time . | . . . . . Total Part Build Rating . | . . . . . Parts Repaired . | . . . . . Time . | . . . . . Parts Recycled . | . . . . . Recycled Matter . | . . . . . Retrieved Matter . | . . . . . Retrieved Components . | . . . . . Parts Scanalyzed 1 | . . . 1 . Part Schematics Acquired 1 | . . . 1 . Parts Damaged . | . . . . . Bothacking | -11 -10 -10 -9 -8 ------------ Run | Scr Mat Min Mat Mat Used RIF Installer . | . . . . . Robots Hacked . | . . . . . Non-combat . | . . . . . Combat . | . . . . . Robot Hacks Applied . | . . . . . Relay Couplers Released . | . . . . . Robots Rewired . | . . . . . Allies Hacked . | . . . . . Hacks Repelled . | . . . . . Allies | -11 -10 -10 -9 -8 -------- Run | Scr Mat Min Mat Mat Total Allies . | . . . . . Largest Group . | . . . . . Highest-Rated Group . | . . . . . Highest-Rated Ally . | . . . . . Total Orders . | . . . . . Ally Attacks . | . . . . . Total Damage . | . . . . . Kills . | . . . . . Allies Corrupted . | . . . . . Allies Melted . | . . . . . Intel | -11 -10 -10 -9 -8 ------- Run | Scr Mat Min Mat Mat Robot Analysis Total 4 | . 1 1 . 2 Derelict Logs Recovered 1 | . . 1 . . Drone Launches . | . . . . . Drone Recoveries . | . . . . . Exploration | -11 -10 -10 -9 -8 ------------- Run | Scr Mat Min Mat Mat Turns Passed 856 | 30 59 357 208 202 Spaces Moved 963 | 51 92 412 231 177 Core 814 | 51 92 412 231 28 Treads . | . . . . . Legs . | . . . . . Wheels . | . . . . . Hover . | . . . . . Flight 149 | . . . . 149 Fastest Speed 37 | 50 50 50 50 37 Average Speed 48 | 50 50 50 50 40 Slowest Speed 120 | 100 50 50 50 120 Overloaded Moves . | . . . . . Propulsion Burnouts . | . . . . . Robots Hopped 2 | . . . . 2 Cave-ins Triggered . | . . . . . Exploration Rate (%) 29 | 4 18 76 20 29 Regions Visited 4 Branch Regions 1 Pre-discovered Areas . | . . . . . Known Exits Taken 1 | . 1 . . . Unknown Exits Taken 3 | 1 . 1 1 . Scrap Searched 2 | . . 2 . . Spaces Dug 15 | . . 1 9 5 Terrain Destroyed 25 | . . 4 9 12 Melee 14 | . . . 9 5 Projectile 4 | . . 4 . . AOE 7 | . . . . 7 Terrain Rammed . | . . . . . Walls Destroyed . | . . . . . Machines Disabled . | . . . . . Actions | -11 -10 -10 -9 -8 --------- Run | Scr Mat Min Mat Mat Total 1188 | 54 98 524 273 239 Wait 125 | . . 94 12 19 Move 955 | 50 91 411 230 173 Hop 2 | . . . . 2 Pick Up 4 | 1 . 3 . . Fast Attach 17 | 2 2 1 4 8 Attach 1 | . . . . 1 Detach . | . . . . . Swap 1 | . . . . 1 Drop 2 | 1 . 1 . . Fire 22 | . 5 11 . 6 Melee 59 | . . 3 27 29 Ram . | . . . . . Kick . | . . . . . Crush . | . . . . . Escape Stasis . | . . . . . Rewire . | . . . . . Trap . | . . . . . Miscellaneous . | . . . . . Route ------- -11/Scrapyard -10/Materials -10/Mines -9/Materials -8/Materials History --------- Turn | Location | Event 5 | -11/Scrapyard | Discovered new exit (range 16) 31 | -11/Scrapyard | Entered Materials 37 | -10/Materials | Identified exit to Mines 90 | -10/Materials | Entered Mines 163 | -10/Mines | Learned Materials security intel 186 | -10/Mines | Found a damaged Exp. Sensor Array with a note attached 187 | -10/Mines | Found Prototype Device 227 | -10/Mines | Core integrity fell below 50% 240 | -10/Mines | Assembled infested the area 245 | -10/Mines | Assisted by a Guerilla fighting off Assembled 318 | -10/Mines | Build established: Mutant 353 | -10/Mines | Discovered new exit (range 7) 359 | -10/Mines | Met a Derelict shopkeep closing up shop 447 | -10/Mines | Entered Materials 447 | -9/Materials | Evolved 2 slots: Utility x2 584 | -9/Materials | Identified Exp. Sensor Array 586 | -9/Materials | Discovered new exit (range 5) 636 | -9/Materials | Core integrity fell below 50% 646 | -9/Materials | Core integrity fell below 20% 655 | -9/Materials | Entered another Materials area 655 | -8/Materials | Evolved 2 slots: Utility x2 774 | -8/Materials | Central database locked down 791 | -8/Materials | Core integrity fell below 50% 834 | -8/Materials | Core integrity fell below 20% 857 | -8/Materials | Destroyed by S-10 Pest with Light Assault Rifle Last Messages --------------- 00843_ Connecting with Terminal... >>Trojan(Botnet) Trojan loaded successfully. Testing... Terminal linked with 3 systems. Awaiting botnet instructions. >>Traps(Locate) Found 6 traps in 1 array: 6x Alarm Trap Map updated. >>Alert(Check) Current Alert Level: 1-S >>Alert(Purge) Purged threat record, alert level lowered. 00843_ ALERT: Suspicious activity at Terminal M002. Dispatching Investigation squad. 00847_ K-01 Serf collects debris. 00851_ Slug penetrates Wall. 00851_ Flight Unit destroyed. 00853_ K-01 Serf collects debris. Map ----- +----------------------------------------------------+ | ?????????????????????????????????????????????????? | | ?????????????????????????????????????????????????? | | ?????????????????????????????????????????????????? | | ???????????#######???????????????????????????????? | | ???????????# ###?????????????????????????????? | | ???????????# ??????????????????????????????? | | ???????????# ??????????????????????????????? | | ???????????? ???????????????????????????????? | | #######????? ! ????????????????????????????????? | | ==!#?????# #????????????????????????????????? | | ==!#?????# #????????????????????????????????? | | " == ??????# #????????????????????????????????? | | " ??????# #????????????????????????????????? | | #""""######## #????????????????????????????????? | | #*!= %==== #????????????????????????????????? | | #%"""######## ##???????????????????????????????? | | #!### ?????# ########????????????????????????? | | [ #??#?????# #????????????????????????? | | ! #????????# #????????????????????????? | | #????????+ #???####?????????????????? | | #????????# #??? #?????????????????? | | #????????##### #?? #?????????????????? | | #????????????#^ #?? +?????????????????? | | | #????????????# "" #? ???????????????????? | | "##????????????# "T ##sY?????????????????????? | | #"#####????????# "" #@#??????????????????????? | | ## #????????# ; #??????????????????????? | | # "" #????????# ^ s###?? #??????????????????? | | # "" #???????## """ #??? #??????????????????? | | / T" #???????# """ ### #??????????????????? | | # "" #???????# ^ """ #??????????????????? | | # "" #???????+ +??????????????????? | | ## #???????# #??????????????????? | | #######???????# ^ ########??????????????????? | | # %#???????# #?????????????????????????? | | # #???????# #?????????????????????????? | | " #???????# k | #?????????????????????????? | | # """ #???????# ![ #?????????????????????????? | | # """ #???????# ^^ [[ #?????????????????????????? | | # """ #???????# [! ??????????????????????????? | | / #???????# ??????????????????????????? | | # #???????+ ??????????????????????????? | | # #???????# ??????????????????????????? | | # "T" #???????? ###??????????????????????????? | | # """ #????????????#?????????????????????????????? | | # #??????????????????????????????????????????? | | #+#####??????????????????????????????????????????? | | #??????????????????????????????????????????????? | | #??????????????????????????????????????????????? | | #??????????????????????????????????????????????? | +----------------------------------------------------+ Best States ------------- Heat Dissipation 31 Energy Generation 5 Energy Capacity 100 Matter Stores 300 Matter Capacity 300 Sight Range 16 Terrain Scan Density 10 Evasion (%) 62 Targeting Accuracy 24 Melee Accuracy 10 Item Schematics ----------------- Exp. Sensor Array | -9/Materials | Scanalyzed Robot Schematics ------------------ None Fabricated ------------ Nothing Alien Tech Used ----------------- None Achievements -------------- Safety First Challenges ------------ None Game ------ Seed BlastAutogunComputer Manual? 0 Play Time 00:19:15 Cumulative 103.6 hours Start 2020.10.05 @ 01:01:20 End 2020.10.05 @ 02:58:27 Sessions 2 Manual Loads 0 Difficulty Rogue Special Mode None Game No. 155 Rogue 131 Adventurer 22 Explorer 2 Win Type - Total 1 Types 1/0/0/0/0/0/0/0/0 Lore% 48 Gallery% 52 Achievement% 43 Wizard Run 0 Options --------- ASCII 0 Keyboard 0 Movement Numpad Keybinds 0 Fullscreen 1 Font 14/SmallcapsGlow Map View 84x54 Tactical HUD 1 Map Filters NONE Filters NONE Steam 1 RUN: a0cb606e-8a19-4253-9a3e-ecb6e37fb59e